[Event "ETCC Women 2013"]
[Site "Warsaw"]
[Date "2013.11.14"]
[Round "6"]
[White "Ptacnikova, Lenka"]
[Black "Tuominen, Tanja"]
[Result "1-0"]
[ECO "A06"]
[WhiteElo "2238"]
[BlackElo "2105"]
[PlyCount "71"]
[EventDate "2013.??.??"]
[EventCountry "POL"]
[WhiteTeam "Iceland"]
[BlackTeam "Finland"]
[WhiteTeamCountry "ISL"]
[BlackTeamCountry "FIN"]
[TimeControl "40/5400+30:1800+30"]

1. Nf3 {[%emt 0:00:00]} d5 {[%emt 0:05:01]} 2. g3 {[%emt 0:00:00]} Nf6 {[%emt
0:00:22]} 3. Bg2 {[%emt 0:00:02]} g6 {[%emt 0:00:25]} 4. d4 {[%emt 0:02:25]}
Bg7 {[%emt 0:00:16]} 5. O-O {[%emt 0:06:28]} O-O {[%emt 0:00:31]} 6. Ne5 {
[%emt 0:02:25]} c5 {[%emt 0:03:18]} 7. dxc5 {[%emt 0:00:49]} Qc7 {[%emt 0:02:
06]} 8. Nd3 {[%emt 0:03:16]} e5 {[%emt 0:18:01]} 9. Nc3 {[%emt 0:16:13]} Be6 {
[%emt 0:03:32]} 10. Nb5 {[%emt 0:16:10]} Qa5 {[%emt 0:07:21]} 11. a4 {[%emt 0:
04:00]} e4 {[%emt 0:06:45]} 12. b4 {[%emt 0:07:35]} Qd8 {[%emt 0:00:26]} 13.
Nf4 {[%emt 0:00:54]} Nc6 {[%emt 0:04:55]} 14. Nxe6 {[%emt 0:03:54]} fxe6 {
[%emt 0:00:05]} 15. Rb1 {[%emt 0:01:18]} a5 {[%emt 0:05:40]} 16. c3 {[%emt 0:
00:42]} Ne8 {[%emt 0:00:53]} 17. Bh3 {[%emt 0:01:34]} Qe7 {[%emt 0:02:23]} 18.
Be3 {[%emt 0:02:15]} axb4 {[%emt 0:16:03]} 19. cxb4 {[%emt 0:00:26]} Be5 {
[%emt 0:01:10]} 20. a5 {[%emt 0:05:19]} Ng7 {[%emt 0:01:42]} 21. Bd2 {[%emt 0:
08:20]} Rad8 {[%emt 0:03:21]} 22. e3 {[%emt 0:00:36]} Nf5 {[%emt 0:00:50]} 23.
Qc2 {[%emt 0:03:01]} Nh4 {[%emt 0:09:42]} 24. Bc3 {[%emt 0:04:43]} Nf3+ {[%emt
0:01:08]} 25. Kh1 {[%emt 0:00:10]} Bb8 {[%emt 0:00:47]} 26. Nd4 {[%emt 0:00:48]
} Ncxd4 {[%emt 0:00:19]} 27. exd4 {[%emt 0:00:48]} h5 {[%emt 0:01:48]} 28. b5 {
[%emt 0:01:57]} h4 {[%emt 0:00:30]} 29. a6 {[%emt 0:01:06]} hxg3 {[%emt 0:03:
45]} 30. fxg3 {[%emt 0:00:24]} bxa6 {[%emt 0:00:50]} 31. bxa6 {[%emt 0:00:32]}
Ng5 {[%emt 0:00:45]} 32. Bg4 {[%emt 0:01:39]} Rxf1+ {[%emt 0:00:22]} 33. Rxf1 {
[%emt 0:00:04]} Qh7 {[%emt 0:00:46]} 34. Kg2 {[%emt 0:01:15]} Re8 {[%emt 0:00:
30]} 35. Qa4 {[%emt 0:00:58]} Re7 {[%emt 0:00:21]} 36. Qc6 {[%emt 0:00:27]} 1-0

[Event "ETCC Women 2013"]
[Site "Warsaw"]
[Date "2013.11.14"]
[Round "6"]
[White "Rakic, Marija"]
[Black "Voiska, Margarita"]
[Result "0-1"]
[ECO "A41"]
[WhiteElo "2291"]
[BlackElo "2298"]
[PlyCount "54"]
[EventDate "2013.??.??"]
[EventCountry "POL"]
[WhiteTeam "Serbia"]
[BlackTeam "Bulgaria"]
[WhiteTeamCountry "SRB"]
[BlackTeamCountry "BUL"]
[TimeControl "40/5400+30:1800+30"]

1. d4 {[%emt 0:00:00]} d6 {[%emt 0:00:00]} 2. c4 {[%emt 0:00:00]} e5 {[%emt 0:
00:00]} 3. Nf3 {[%emt 0:00:00]} e4 {[%emt 0:01:07]} 4. Ng5 {[%emt 0:00:12]} f5
{[%emt 0:00:32]} 5. Nc3 {[%emt 0:00:56]} Be7 {[%emt 0:00:59]} 6. Nh3 {[%emt 0:
00:05]} Nf6 {[%emt 0:00:26]} 7. g3 {[%emt 0:00:35]} O-O {[%emt 0:01:44]} 8. Bg2
{[%emt 0:01:26]} c5 {[%emt 0:02:20]} 9. d5 {[%emt 0:11:48]} Nbd7 {[%emt 0:02:
18]} 10. O-O {[%emt 0:01:11]} Ne5 {[%emt 0:00:56]} 11. b3 {[%emt 0:00:20]} Nh5
{[%emt 0:02:28]} 12. f3 {[%emt 0:10:08]} Bf6 {[%emt 0:02:43]} 13. Bb2 {[%emt 0:
00:37]} Qe7 {[%emt 0:05:52]} 14. Qc2 {[%emt 0:08:29]} Bd7 {[%emt 0:04:29]} 15.
Nf2 {[%emt 0:10:52]} e3 {[%emt 0:14:15]} 16. Nh3 {[%emt 0:00:04]} h6 {[%emt 0:
20:44]} 17. f4 {[%emt 0:05:13]} Ng4 {[%emt 0:02:28]} 18. Nd1 {[%emt 0:00:05]}
Rae8 {[%emt 0:07:04]} 19. Bf3 {[%emt 0:01:40]} Bxb2 {[%emt 0:01:25]} 20. Nxb2 {
[%emt 0:00:05]} Nhf6 {[%emt 0:02:23]} 21. Kg2 {[%emt 0:06:18]} Nh7 {[%emt 0:03:
29]} 22. Ng1 {[%emt 0:14:00]} g5 {[%emt 0:09:12]} 23. fxg5 {[%emt 0:00:12]}
hxg5 {[%emt 0:00:26]} 24. Bxg4 {[%emt 0:03:23]} fxg4 {[%emt 0:00:02]} 25. Qg6+
{[%emt 0:00:30]} Kh8 {[%emt 0:00:33]} 26. Qd3 {[%emt 0:05:00]} Qe5 {[%emt 0:02:
21]} 27. Rab1 {[%emt 0:02:50]} Rf2+ {[%emt 0:03:19]} 0-1

[Event "ETCC Women 2013"]
[Site "Warsaw"]
[Date "2013.11.14"]
[Round "6"]
[White "Rautanen, Sari"]
[Black "Kristinardottir, Elsa Maria"]
[Result "1-0"]
[ECO "A05"]
[WhiteElo "1956"]
[BlackElo "1819"]
[PlyCount "103"]
[EventDate "2013.??.??"]
[EventCountry "POL"]
[WhiteTeam "Finland"]
[BlackTeam "Iceland"]
[WhiteTeamCountry "FIN"]
[BlackTeamCountry "ISL"]
[TimeControl "40/5400+30:1800+30"]

1. Nf3 {[%emt 0:00:00]} Nf6 {[%emt 0:00:00]} 2. g3 {[%emt 0:00:00]} g6 {[%emt
0:00:24]} 3. Bg2 {[%emt 0:00:05]} Bg7 {[%emt 0:00:26]} 4. O-O {[%emt 0:00:09]}
O-O {[%emt 0:00:12]} 5. c4 {[%emt 0:01:07]} d5 {[%emt 0:01:25]} 6. cxd5 {[%emt
0:01:10]} Nxd5 {[%emt 0:00:24]} 7. d4 {[%emt 0:02:08]} c6 {[%emt 0:04:39]} 8.
e4 {[%emt 0:02:35]} Nf6 {[%emt 0:02:32]} 9. Nc3 {[%emt 0:00:40]} Re8 {[%emt 0:
01:51]} 10. h3 {[%emt 0:03:50]} Nbd7 {[%emt 0:01:21]} 11. e5 {[%emt 0:04:55]}
Nd5 {[%emt 0:00:14]} 12. Nxd5 {[%emt 0:01:25]} cxd5 {[%emt 0:00:06]} 13. Bf4 {
[%emt 0:07:31]} Qb6 {[%emt 0:06:40]} 14. Qd2 {[%emt 0:01:56]} Nf8 {[%emt 0:01:
32]} 15. Rac1 {[%emt 0:04:56]} Bd7 {[%emt 0:01:43]} 16. Rc3 {[%emt 0:02:39]}
Rac8 {[%emt 0:02:16]} 17. Rfc1 {[%emt 0:00:44]} Rc6 {[%emt 0:02:58]} 18. Be3
Rec8 {[%emt 0:02:23]} 19. Kh2 {[%emt 0:11:19]} Rxc3 {[%emt 0:08:36]} 20. Rxc3 {
[%emt 0:00:21]} Rxc3 {[%emt 0:00:49]} 21. Qxc3 {[%emt 0:00:47]} Qc6 {[%emt 0:
01:19]} 22. Qa3 {[%emt 0:04:23]} Qb6 {[%emt 0:05:24]} 23. Qxe7 {[%emt 0:06:06]}
Qxb2 {[%emt 0:01:55]} 24. a3 {[%emt 0:09:37]} h6 {[%emt 0:05:13]} 25. Qc5 {
[%emt 0:05:13]} Bc6 {[%emt 0:06:29]} 26. Qxa7 {[%emt 0:01:14]} Ne6 {[%emt 0:01:
37]} 27. h4 {[%emt 0:02:39]} Qe2 {[%emt 0:03:42]} 28. Nd2 {[%emt 0:03:08]} Qd1
{[%emt 0:02:41]} 29. Nf3 {[%emt 0:07:31]} Qe2 {[%emt 0:01:34]} 30. Qa5 {[%emt
0:03:03]} Qa2 {[%emt 0:08:19]} 31. Bh3 {[%emt 0:04:32]} Bf8 {[%emt 0:02:15]}
32. Bxe6 {[%emt 0:01:45]} fxe6 {[%emt 0:00:17]} 33. Qd8 {[%emt 0:00:48]} Qxa3 {
[%emt 0:03:10]} 34. Qf6 {[%emt 0:01:19]} Be8 {[%emt 0:01:40]} 35. Qxe6+ {[%emt
0:00:22]} Bf7 {[%emt 0:00:08]} 36. Qd7 {[%emt 0:01:46]} Qa6 {[%emt 0:01:03]}
37. Qd8 {[%emt 0:01:38]} Qf1 {[%emt 0:04:26]} 38. Qc8 {[%emt 0:03:00]} Qc4 {
[%emt 0:05:29]} 39. Qxb7 {[%emt 0:00:27]} Be6 {[%emt 0:00:49]} 40. Qb1 {[%emt
0:00:00]} Bf5 {[%emt 0:00:00]} 41. Qc1 {[%emt 0:03:11]} Qe2 {[%emt 0:02:49]}
42. Ng1 {[%emt 0:01:54]} Qa2 {[%emt 0:02:28]} 43. Nh3 {[%emt 0:01:46]} h5 {
[%emt 0:02:50]} 44. Ng5 {[%emt 0:01:15]} Be7 {[%emt 0:01:52]} 45. Nh3 {[%emt 0:
02:07]} Ba3 {[%emt 0:02:14]} 46. Qc6 {[%emt 0:02:52]} Kf7 {[%emt 0:09:44]} 47.
Ng5+ {[%emt 0:00:41]} Ke7 {[%emt 0:00:18]} 48. Qc7+ {[%emt 0:01:06]} Ke8 {
[%emt 0:00:23]} 49. e6 {[%emt 0:00:57]} Bxe6 {[%emt 0:02:46]} 50. Nxe6 {[%emt
0:00:10]} Be7 {[%emt 0:00:37]} 51. Nf4 {[%emt 0:01:01]} Qc4 {[%emt 0:01:35]}
52. Qe5 {[%emt 0:00:42]} 1-0

[Event "ETCC Women 2013"]
[Site "Warsaw"]
[Date "2013.11.14"]
[Round "6"]
[White "Reppen, Ellisiv"]
[Black "Borsuk, Angela"]
[Result "0-1"]
[ECO "B01"]
[WhiteElo "2008"]
[BlackElo "2186"]
[PlyCount "108"]
[EventDate "2013.??.??"]
[EventCountry "POL"]
[WhiteTeam "Norway"]
[BlackTeam "Israel"]
[WhiteTeamCountry "NOR"]
[BlackTeamCountry "ISR"]
[TimeControl "40/5400+30:1800+30"]

1. e4 {[%emt 0:00:00]} d5 {[%emt 0:00:00]} 2. exd5 {[%emt 0:00:00]} Qxd5 {
[%emt 0:00:00]} 3. Nc3 {[%emt 0:00:00]} Qd6 {[%emt 0:00:00]} 4. d4 {[%emt 0:00:
11]} Nf6 {[%emt 0:00:00]} 5. Nf3 {[%emt 0:00:54]} a6 {[%emt 0:00:03]} 6. h3 {
[%emt 0:00:56]} e6 {[%emt 0:02:25]} 7. Bd3 {[%emt 0:02:09]} Be7 {[%emt 0:03:13]
} 8. Be3 {[%emt 0:02:26]} Nbd7 {[%emt 0:03:35]} 9. Qd2 {[%emt 0:06:09]} c5 {
[%emt 0:09:05]} 10. Bf4 {[%emt 0:06:55]} Qb6 {[%emt 0:10:07]} 11. Na4 {[%emt 0:
13:43]} Qb4 {[%emt 0:04:37]} 12. Qxb4 {[%emt 0:02:27]} cxb4 {[%emt 0:00:06]}
13. c4 {[%emt 0:06:20]} bxc3 {[%emt 0:03:34]} 14. Nxc3 {[%emt 0:02:47]} O-O {
[%emt 0:01:37]} 15. O-O {[%emt 0:01:52]} b5 {[%emt 0:09:25]} 16. Rac1 {[%emt 0:
07:21]} Bb7 {[%emt 0:07:01]} 17. Ne5 {[%emt 0:04:33]} Rfd8 {[%emt 0:03:48]} 18.
Be2 {[%emt 0:04:38]} Rac8 {[%emt 0:04:45]} 19. Bf3 {[%emt 0:05:30]} Bxf3 {
[%emt 0:01:25]} 20. Nxf3 {[%emt 0:00:16]} Nb6 {[%emt 0:01:11]} 21. Ne2 {[%emt
0:07:14]} Nfd5 {[%emt 0:01:38]} 22. Bh2 {[%emt 0:02:08]} Na4 {[%emt 0:04:09]}
23. b3 {[%emt 0:04:35]} Nac3 {[%emt 0:01:09]} 24. Nxc3 {[%emt 0:02:22]} Rxc3 {
[%emt 0:01:29]} 25. Rxc3 {[%emt 0:06:16]} Nxc3 {[%emt 0:00:04]} 26. a4 {[%emt
0:04:13]} b4 {[%emt 0:02:26]} 27. Bc7 {[%emt 0:01:41]} Rc8 {[%emt 0:04:04]} 28.
Bb6 {[%emt 0:00:39]} f6 {[%emt 0:04:58]} 29. Re1 {[%emt 0:01:03]} Kf7 {[%emt 0:
00:08]} 30. Nd2 {[%emt 0:01:41]} Nd5 {[%emt 0:00:38]} 31. Ba5 {[%emt 0:01:28]}
Rc3 {[%emt 0:02:17]} 32. Rb1 {[%emt 0:01:50]} Rd3 {[%emt 0:02:28]} 33. Nf3 {
[%emt 0:00:16]} Nf4 {[%emt 0:02:25]} 34. Ne1 {[%emt 0:00:56]} Rc3 {[%emt 0:03:
40]} 35. Kh2 {[%emt 0:00:54]} Ne2 {[%emt 0:02:19]} 36. Nf3 {[%emt 0:00:31]}
Bd6+ {[%emt 0:00:22]} 37. Kh1 {[%emt 0:00:12]} Rc2 {[%emt 0:02:29]} 38. Ne1 {
[%emt 0:00:30]} Rd2 {[%emt 0:01:28]} 39. Nf3 {[%emt 0:00:13]} Rd3 {[%emt 0:00:
42]} 40. Bb6 {[%emt 0:00:00]} Nc3 {[%emt 0:00:00]} 41. Rc1 {[%emt 0:11:48]} Ke7
{[%emt 0:11:47]} 42. Bc5 {[%emt 0:05:06]} Bxc5 {[%emt 0:03:39]} 43. dxc5 {
[%emt 0:00:06]} Kd7 {[%emt 0:00:45]} 44. Re1 {[%emt 0:02:51]} e5 {[%emt 0:07:
32]} 45. Rxe5 {[%emt 0:11:42]} Rxf3 {[%emt 0:01:58]} 46. c6+ {[%emt 0:01:07]}
Kxc6 {[%emt 0:00:09]} 47. Re6+ {[%emt 0:00:09]} Kd5 {[%emt 0:00:37]} 48. Rxa6 {
[%emt 0:00:23]} Rxf2 {[%emt 0:00:12]} 49. Ra7 {[%emt 0:01:24]} Rb2 {[%emt 0:01:
56]} 50. Rxg7 {[%emt 0:00:47]} Rxb3 {[%emt 0:00:07]} 51. Rxh7 {[%emt 0:00:44]}
Nxa4 {[%emt 0:01:41]} 52. h4 Rc3 {[%emt 0:01:17]} 53. h5 {[%emt 0:01:09]} b3 {
[%emt 0:01:01]} 54. Rd7+ {[%emt 0:00:40]} Ke6 {[%emt 0:00:30]} 0-1

[Event "ETCC Women 2013"]
[Site "Warsaw"]
[Date "2013.11.14"]
[Round "6"]
[White "Rudolf, Anna"]
[Black "Voicu-Jagodzinsky, Carmen"]
[Result "1-0"]
[ECO "B42"]
[WhiteElo "2281"]
[BlackElo "2275"]
[PlyCount "123"]
[EventDate "2013.??.??"]
[EventCountry "POL"]
[WhiteTeam "Hungary"]
[BlackTeam "Romania"]
[WhiteTeamCountry "HUN"]
[BlackTeamCountry "ROU"]
[TimeControl "40/5400+30:1800+30"]

1. e4 {[%emt 0:00:00]} c5 {[%emt 0:00:00]} 2. Nf3 {[%emt 0:00:00]} e6 {[%emt 0:
00:00]} 3. d4 {[%emt 0:00:09]} cxd4 {[%emt 0:00:00]} 4. Nxd4 {[%emt 0:00:12]}
a6 {[%emt 0:00:00]} 5. Bd3 {[%emt 0:00:22]} Nf6 {[%emt 0:01:26]} 6. O-O {[%emt
0:00:34]} Qc7 {[%emt 0:01:26]} 7. Qe2 {[%emt 0:00:39]} d6 {[%emt 0:01:15]} 8.
c4 {[%emt 0:00:35]} g6 {[%emt 0:01:54]} 9. Nc3 {[%emt 0:00:26]} Bg7 {[%emt 0:
00:17]} 10. Nf3 {[%emt 0:00:27]} Nbd7 {[%emt 0:01:52]} 11. Bf4 {[%emt 0:00:34]}
Ng4 {[%emt 0:03:02]} 12. Rac1 {[%emt 0:02:17]} Nge5 {[%emt 0:00:45]} 13. Rfd1 {
[%emt 0:07:11]} O-O {[%emt 0:04:53]} 14. Qe3 {[%emt 0:02:50]} Nxf3+ {[%emt 0:
06:23]} 15. Qxf3 {[%emt 0:00:26]} Ne5 {[%emt 0:00:37]} 16. Qe3 {[%emt 0:01:17]}
Bd7 {[%emt 0:13:13]} 17. Be2 {[%emt 0:02:29]} Rfd8 {[%emt 0:04:50]} 18. Bg5 {
[%emt 0:11:45]} f6 {[%emt 0:11:35]} 19. Bh6 {[%emt 0:02:03]} Nf7 {[%emt 0:10:
13]} 20. Bxg7 {[%emt 0:04:58]} Kxg7 {[%emt 0:00:01]} 21. Kh1 {[%emt 0:11:18]}
Rac8 {[%emt 0:02:12]} 22. f4 {[%emt 0:01:14]} Qc5 {[%emt 0:00:25]} 23. Qg3 {
[%emt 0:01:12]} b5 {[%emt 0:01:44]} 24. e5 {[%emt 0:08:41]} f5 {[%emt 0:09:24]}
25. exd6 {[%emt 0:06:34]} b4 {[%emt 0:12:01]} 26. Nb1 {[%emt 0:01:13]} Nxd6 {
[%emt 0:02:54]} 27. Nd2 {[%emt 0:02:42]} Ba4 {[%emt 0:05:29]} 28. b3 {[%emt 0:
02:30]} Bc6 {[%emt 0:00:04]} 29. Bf3 {[%emt 0:00:59]} Bxf3 {[%emt 0:00:23]} 30.
Qxf3 {[%emt 0:01:43]} Rc7 {[%emt 0:01:38]} 31. h3 {[%emt 0:04:41]} Rcd7 {[%emt
0:00:21]} 32. Qe2 {[%emt 0:04:56]} Nf7 {[%emt 0:04:15]} 33. Nf3 {[%emt 0:00:46]
} Rxd1+ {[%emt 0:01:03]} 34. Rxd1 {[%emt 0:00:07]} Rxd1+ {[%emt 0:00:06]} 35.
Qxd1 {[%emt 0:00:09]} Qe3 {[%emt 0:00:05]} 36. Qd4+ {[%emt 0:04:22]} Qxd4 {
[%emt 0:00:02]} 37. Nxd4 {[%emt 0:00:11]} e5 {[%emt 0:00:25]} 38. Nc6 {[%emt 0:
01:18]} exf4 {[%emt 0:02:09]} 39. Nxb4 {[%emt 0:00:13]} a5 {[%emt 0:00:18]} 40.
Nc6 {[%emt 0:00:00]} a4 {[%emt 0:00:00]} 41. b4 {[%emt 0:08:41]} Nd6 {[%emt 0:
01:33]} 42. Na5 {[%emt 0:08:59]} Kf6 {[%emt 0:08:17]} 43. b5 {[%emt 0:01:11]}
Ke7 {[%emt 0:01:28]} 44. b6 {[%emt 0:01:25]} Kd7 {[%emt 0:07:48]} 45. c5 {
[%emt 0:01:13]} Ne4 {[%emt 0:00:12]} 46. c6+ {[%emt 0:01:00]} Kc8 {[%emt 0:00:
02]} 47. Nc4 {[%emt 0:02:41]} g5 {[%emt 0:00:28]} 48. a3 {[%emt 0:06:15]} g4 {
[%emt 0:02:54]} 49. Ne5 {[%emt 0:02:09]} Nc5 {[%emt 0:02:42]} 50. hxg4 {[%emt
0:03:42]} fxg4 {[%emt 0:00:26]} 51. Nxg4 {[%emt 0:00:21]} Nd3 {[%emt 0:00:05]}
52. Kg1 {[%emt 0:04:25]} h5 {[%emt 0:00:51]} 53. Nf6 {[%emt 0:00:08]} Ne5 {
[%emt 0:00:08]} 54. b7+ {[%emt 0:03:07]} Kc7 {[%emt 0:00:16]} 55. Nd5+ {[%emt
0:00:24]} Kb8 {[%emt 0:00:13]} 56. Nb4 {[%emt 0:01:03]} Ka7 {[%emt 0:00:33]}
57. Kf2 {[%emt 0:01:40]} h4 {[%emt 0:00:14]} 58. Ke2 {[%emt 0:00:42]} f3+ {
[%emt 0:04:05]} 59. gxf3 {[%emt 0:00:07]} h3 {[%emt 0:00:01]} 60. Kf2 {[%emt 0:
00:23]} h2 {[%emt 0:00:13]} 61. Kg2 {[%emt 0:00:24]} Nxf3 {[%emt 0:00:14]} 62.
Na6 {[%emt 0:00:27]} 1-0

[Event "ETCC Women 2013"]
[Site "Warsaw"]
[Date "2013.11.14"]
[Round "6"]
[White "Saric, Kristina"]
[Black "Revo, Tatiana"]
[Result "0-1"]
[ECO "B52"]
[WhiteElo "2250"]
[BlackElo "2075"]
[PlyCount "58"]
[EventDate "2013.??.??"]
[EventCountry "POL"]
[WhiteTeam "Croatia"]
[BlackTeam "Belarus"]
[WhiteTeamCountry "CRO"]
[BlackTeamCountry "BLR"]
[TimeControl "40/5400+30:1800+30"]

1. e4 {[%emt 0:00:00]} c5 {[%emt 0:00:00]} 2. Nf3 {[%emt 0:00:00]} d6 {[%emt 0:
00:00]} 3. Bb5+ {[%emt 0:00:00]} Bd7 {[%emt 0:00:00]} 4. Bxd7+ {[%emt 0:00:00]}
Qxd7 {[%emt 0:00:00]} 5. O-O {[%emt 0:00:08]} Nc6 {[%emt 0:00:07]} 6. Qe2 {
[%emt 0:00:24]} Nf6 {[%emt 0:00:22]} 7. c3 {[%emt 0:00:54]} e6 {[%emt 0:01:37]}
8. d4 {[%emt 0:00:55]} cxd4 {[%emt 0:00:28]} 9. cxd4 {[%emt 0:00:02]} d5 {
[%emt 0:00:37]} 10. e5 {[%emt 0:00:10]} Ne4 {[%emt 0:00:10]} 11. Be3 {[%emt 0:
00:14]} Be7 {[%emt 0:00:51]} 12. Ne1 {[%emt 0:00:25]} f5 {[%emt 0:08:39]} 13.
f3 {[%emt 0:02:28]} Ng5 {[%emt 0:00:29]} 14. Nd3 {[%emt 0:00:26]} O-O {[%emt 0:
04:30]} 15. Nf4 {[%emt 0:05:19]} Nf7 {[%emt 0:14:37]} 16. Nc3 {[%emt 0:03:47]}
g5 {[%emt 0:02:47]} 17. Nd3 {[%emt 0:03:12]} f4 {[%emt 0:06:26]} 18. Bf2 {
[%emt 0:00:07]} Nh6 {[%emt 0:00:56]} 19. Nc5 {[%emt 0:09:51]} Bxc5 {[%emt 0:08:
17]} 20. dxc5 {[%emt 0:00:02]} Rf5 {[%emt 0:12:26]} 21. Rad1 {[%emt 0:02:08]}
Qg7 {[%emt 0:04:52]} 22. Qd2 {[%emt 0:03:52]} g4 {[%emt 0:07:54]} 23. Bd4 {
[%emt 0:06:19]} Rg5 {[%emt 0:03:29]} 24. fxg4 {[%emt 0:13:34]} Nxd4 {[%emt 0:
00:38]} 25. Qxd4 {[%emt 0:00:05]} Rxg4 {[%emt 0:00:07]} 26. Rxf4 {[%emt 0:15:
25]} Rxg2+ {[%emt 0:00:09]} 27. Kh1 {[%emt 0:00:26]} Kh8 {[%emt 0:00:33]} 28.
Ne2 {[%emt 0:19:51]} Rg8 {[%emt 0:02:49]} 29. Ng3 {[%emt 0:01:31]} Rxh2+ {
[%emt 0:00:21]} 0-1

[Event "ETCC Women 2013"]
[Site "Warsaw"]
[Date "2013.11.14"]
[Round "6"]
[White "Savola, Laura"]
[Black "Thorsteinsdottir, Hallgerdur"]
[Result "0-1"]
[ECO "D86"]
[WhiteElo "2076"]
[BlackElo "1951"]
[PlyCount "94"]
[EventDate "2013.??.??"]
[EventCountry "POL"]
[WhiteTeam "Finland"]
[BlackTeam "Iceland"]
[WhiteTeamCountry "FIN"]
[BlackTeamCountry "ISL"]
[TimeControl "40/5400+30:1800+30"]

1. d4 {[%emt 0:00:00]} Nf6 {[%emt 0:00:00]} 2. c4 {[%emt 0:00:00]} g6 {[%emt 0:
00:00]} 3. Nc3 {[%emt 0:00:00]} d5 {[%emt 0:00:14]} 4. cxd5 {[%emt 0:00:03]}
Nxd5 {[%emt 0:00:09]} 5. e4 {[%emt 0:00:05]} Nxc3 {[%emt 0:00:12]} 6. bxc3 {
[%emt 0:00:04]} Bg7 {[%emt 0:00:16]} 7. Bc4 {[%emt 0:00:09]} c5 {[%emt 0:00:23]
} 8. Ne2 {[%emt 0:00:39]} Nc6 {[%emt 0:00:34]} 9. Be3 {[%emt 0:01:10]} O-O {
[%emt 0:00:31]} 10. O-O {[%emt 0:00:07]} Qc7 {[%emt 0:00:24]} 11. Rc1 {[%emt 0:
18:20]} b6 {[%emt 0:01:35]} 12. Qa4 {[%emt 0:16:59]} Na5 {[%emt 0:06:27]} 13.
Bd3 {[%emt 0:01:42]} Rd8 {[%emt 0:03:54]} 14. Rfd1 {[%emt 0:03:11]} c4 {[%emt
0:12:25]} 15. Bb1 {[%emt 0:02:38]} Bd7 {[%emt 0:03:12]} 16. Qa3 {[%emt 0:02:50]
} e5 {[%emt 0:11:33]} 17. dxe5 {[%emt 0:34:00]} Qxe5 {[%emt 0:07:47]} 18. Bf4 {
[%emt 0:07:48]} Qe8 {[%emt 0:05:38]} 19. Nd4 {[%emt 0:02:47]} Nb7 {[%emt 0:04:
12]} 20. Qb4 {[%emt 0:02:48]} Rdc8 {[%emt 0:01:16]} 21. Re1 {[%emt 0:03:38]}
Bf8 {[%emt 0:01:43]} 22. Qb2 {[%emt 0:00:11]} Nc5 {[%emt 0:02:11]} 23. Rcd1 {
[%emt 0:00:25]} Ba4 {[%emt 0:04:16]} 24. Rd2 {[%emt 0:00:32]} b5 {[%emt 0:01:
17]} 25. Bg3 {[%emt 0:01:31]} a5 {[%emt 0:00:49]} 26. e5 {[%emt 0:00:41]} b4 {
[%emt 0:01:24]} 27. f4 {[%emt 0:00:39]} Ne6 {[%emt 0:01:42]} 28. Be4 bxc3 {
[%emt 0:05:31]} 29. Qxc3 {[%emt 0:00:31]} Bb4 {[%emt 0:00:36]} 30. Qc1 {[%emt
0:00:01]} Bxd2 {[%emt 0:06:19]} 31. Qxd2 {[%emt 0:00:02]} c3 {[%emt 0:00:35]}
32. Qc1 {[%emt 0:01:34]} Nxd4 {[%emt 0:03:45]} 33. Bxa8 {[%emt 0:00:02]} Rxa8 {
[%emt 0:00:11]} 34. Qxc3 {[%emt 0:00:03]} Nf5 {[%emt 0:00:40]} 35. Bf2 {[%emt
0:00:03]} Qc6 {[%emt 0:01:48]} 36. Qd2 {[%emt 0:00:15]} Qc2 {[%emt 0:01:20]}
37. Qxc2 {[%emt 0:02:06]} Bxc2 {[%emt 0:00:03]} 38. g4 {[%emt 0:00:22]} Ng7 {
[%emt 0:00:38]} 39. Rc1 {[%emt 0:00:46]} Be4 {[%emt 0:01:28]} 40. Rc7 Ne6 {
[%emt 0:00:00]} 41. Rc4 {[%emt 0:00:51]} Bd5 {[%emt 0:09:57]} 42. Ra4 {[%emt 0:
00:02]} Bc6 {[%emt 0:01:10]} 43. Rc4 {[%emt 0:00:37]} Bb5 {[%emt 0:00:28]} 44.
Re4 {[%emt 0:00:29]} Rc8 {[%emt 0:00:54]} 45. f5 {[%emt 0:00:40]} Ng5 {[%emt 0:
05:23]} 46. Re3 {[%emt 0:00:06]} Rc1+ {[%emt 0:01:17]} 47. Kg2 {[%emt 0:00:15]}
Bc6+ {[%emt 0:00:25]} 0-1

[Event "ETCC Women 2013"]
[Site "Warsaw"]
[Date "2013.11.14"]
[Round "6"]
[White "Sebag, Marie"]
[Black "Sedina, Elena"]
[Result "1-0"]
[ECO "C08"]
[WhiteElo "2510"]
[BlackElo "2302"]
[PlyCount "97"]
[EventDate "2013.??.??"]
[EventCountry "POL"]
[WhiteTeam "France"]
[BlackTeam "Italy"]
[WhiteTeamCountry "FRA"]
[BlackTeamCountry "ITA"]
[TimeControl "40/5400+30:1800+30"]

1. e4 {[%emt 0:00:00]} e6 {[%emt 0:00:00]} 2. d4 {[%emt 0:00:00]} d5 {[%emt 0:
00:00]} 3. Nd2 {[%emt 0:00:00]} c5 {[%emt 0:00:08]} 4. exd5 {[%emt 0:00:27]}
exd5 {[%emt 0:00:29]} 5. Ngf3 {[%emt 0:00:46]} Nf6 {[%emt 0:01:32]} 6. Bb5+ {
[%emt 0:05:06]} Bd7 {[%emt 0:00:17]} 7. Bxd7+ {[%emt 0:00:40]} Nbxd7 {[%emt 0:
00:10]} 8. O-O {[%emt 0:01:09]} Be7 {[%emt 0:00:22]} 9. dxc5 {[%emt 0:02:34]}
Nxc5 {[%emt 0:00:43]} 10. Re1 {[%emt 0:02:23]} O-O {[%emt 0:02:04]} 11. Nf1 {
[%emt 0:00:11]} Re8 {[%emt 0:05:27]} 12. Be3 {[%emt 0:02:33]} a5 {[%emt 0:04:
37]} 13. c3 {[%emt 0:23:21]} Nce4 {[%emt 0:20:08]} 14. Bd4 {[%emt 0:05:07]} Bc5
{[%emt 0:13:26]} 15. Qc2 {[%emt 0:07:13]} Rc8 {[%emt 0:27:18]} 16. Ne3 {[%emt
0:06:22]} Bxd4 {[%emt 0:12:25]} 17. Nxd4 {[%emt 0:00:12]} Qb6 {[%emt 0:00:15]}
18. Rad1 {[%emt 0:11:44]} Nd6 {[%emt 0:00:32]} 19. Ndf5 {[%emt 0:08:55]} Nxf5 {
[%emt 0:07:19]} 20. Nxf5 {[%emt 0:00:14]} Qc5 {[%emt 0:00:06]} 21. Qd2 {[%emt
0:03:33]} Ne4 {[%emt 0:01:57]} 22. Qe3 {[%emt 0:01:41]} g6 {[%emt 0:00:42]} 23.
Qxc5 {[%emt 0:07:16]} Rxc5 {[%emt 0:00:02]} 24. Ne3 {[%emt 0:02:35]} Nd6 {
[%emt 0:00:10]} 25. Nc2 {[%emt 0:02:47]} Rxe1+ {[%emt 0:01:00]} 26. Nxe1 {
[%emt 0:00:30]} a4 {[%emt 0:01:02]} 27. Nd3 {[%emt 0:00:19]} Rb5 {[%emt 0:00:
37]} 28. Rd2 {[%emt 0:04:11]} Ne4 {[%emt 0:00:29]} 29. Rc2 {[%emt 0:00:13]} a3
{[%emt 0:00:32]} 30. b4 {[%emt 0:01:16]} Rb6 {[%emt 0:00:33]} 31. f3 {[%emt 0:
00:23]} Nd6 {[%emt 0:00:31]} 32. Kf2 {[%emt 0:01:32]} Rc6 {[%emt 0:00:21]} 33.
Ke3 {[%emt 0:00:30]} d4+ {[%emt 0:00:23]} 34. Kxd4 {[%emt 0:00:17]} Nf5+ {
[%emt 0:00:37]} 35. Ke4 {[%emt 0:00:13]} Rc4+ {[%emt 0:00:36]} 36. Ke5 {[%emt
0:00:11]} Ne3 {[%emt 0:00:34]} 37. Rd2 {[%emt 0:01:12]} Kg7 {[%emt 0:00:29]}
38. Nc5 {[%emt 0:00:28]} b6 {[%emt 0:00:26]} 39. Ne4 {[%emt 0:00:15]} Rc7 {
[%emt 0:00:35]} 40. Kd6 {[%emt 0:00:00]} Rc8 {[%emt 0:00:00]} 41. Kd7 {[%emt 0:
00:55]} Rc4 {[%emt 0:22:54]} 42. Rd4 {[%emt 0:01:19]} Rxd4+ {[%emt 0:01:53]}
43. cxd4 {[%emt 0:00:02]} f5 {[%emt 0:05:33]} 44. Nc3 {[%emt 0:03:11]} Nxg2 {
[%emt 0:00:20]} 45. d5 {[%emt 0:05:38]} Kf6 {[%emt 0:01:54]} 46. d6 {[%emt 0:
02:13]} Nf4 {[%emt 0:00:25]} 47. Kc8 {[%emt 0:01:14]} Ke5 {[%emt 0:00:22]} 48.
d7 {[%emt 0:00:25]} Ne6 {[%emt 0:00:03]} 49. Nb5 {[%emt 0:00:38]} 1-0